fUSD/lending_fUSD_20251201
["ID","MTS","AMOUNT","RATE_DAILY","PERIOD"]
[395244738,1764565847010,-500.0,0.00016029,2]
[395244740,1764565847020,-500.0,0.00016029,2]
[395244741,1764565847029,-500.0,0.00016029,2]
[395244743,1764565847039,-269.91867043,0.00016029,2]
[395244745,1764565847048,-150.0,0.00016031,2]
[395244747,1764565847058,-150.0,0.00016035,2]
[395244749,1764565847068,-158.68270837,0.00016043,2]
[395244751,1764565847077,-218.77357495,0.00016043,2]
[395244753,1764565847087,-150.0,0.00016046,2]
[395244755,1764565847096,-798.51664654,0.00016049,2]
[395244757,1764565847105,-220.31769748,0.00016049,2]
[395244759,1764565847115,-10000.0,0.00016049,2]
[395244761,1764565847125,-150.0,0.00016049,2]
[395244763,1764565847135,-150.0,0.00016055,2]
[395244765,1764565847145,-1379.0,0.00016056,2]
[395244767,1764565847155,-500.0,0.00016056,2]
[395244769,1764565847164,-507.08566022,0.00016056,2]
[395244771,1764565847174,-500.0,0.00016056,2]
[395244773,1764565847188,-3218.0,0.00016056,2]
[395244775,1764565847197,-836.0,0.00016056,2]
[395244777,1764565847211,-150.0,0.00016058,2]
[395244779,1764565847221,-168.0,0.00016058,2]
[395244781,1764565847233,-158.68270837,0.0001606,2]
[395244782,1764565847243,-150.0,0.0001606,2]
[395244784,1764565847252,-218.77357495,0.0001606,2]
[395244786,1764565847265,-150.0,0.0001606,2]
[395244788,1764565847275,-150.0,0.00016072,2]
[395244790,1764565847285,-158.68270837,0.00016077,2]
[395244792,1764565847295,-218.77357495,0.00016077,2]
[395244795,1764565847306,-150.0,0.00016078,2]
[395244796,1764565847315,-150.0,0.0001608,2]
[395244798,1764565847325,-150.0,0.0001608,2]
[395244800,1764565847334,-150.0,0.00016084,2]
[395244802,1764565847343,-150.0,0.00016091,2]
[395244804,1764565847353,-158.68270837,0.00016094,2]
[395244806,1764565847363,-218.77357495,0.00016094,2]
[395244808,1764565847372,-150.0,0.00016098,2]
[395244810,1764565847382,-150.0,0.00016103,2]
[395244812,1764565847392,-150.0,0.00016108,2]
[395244814,1764565847402,-150.0,0.0001611,2]
[395244816,1764565847412,-158.68270837,0.00016111,2]
[395244818,1764565847421,-218.77357495,0.00016111,2]
[395244820,1764565847431,-9999.99,0.00016116,2]
[395244822,1764565847440,-31647.64756146,0.00016116,2]
[395244824,1764565847450,-12770.60989328,0.00016116,2]
[395244826,1764565847459,-1231.98120029,0.00016121,5]
[395244828,1764565847468,-150.0,0.00016122,2]
[395244830,1764565847478,-150.0,0.00016124,2]
[395244832,1764565847487,-150.0,0.00016126,2]
[395244834,1764565847496,-158.68270837,0.00016128,2]
[395244836,1764565847506,-218.77357495,0.00016128,2]
[395244838,1764565847515,-207.4,0.0001613,2]
[395244839,1764565847525,-1644.54,0.0001613,2]
[395244841,1764565847535,-500.0,0.00016131,2]
[395244843,1764565847544,-200.0,0.00016131,2]
[395244845,1764565847553,-200.0,0.00016131,2]
[395244847,1764565847563,-150.0,0.00016137,2]
[395244849,1764565847572,-150.0,0.00016137,2]
[395244851,1764565847581,-150.0,0.00016137,2]
[395244853,1764565847594,-150.0,0.00016137,2]
[395244855,1764565847603,-150.0,0.00016137,2]
[395244857,1764565847612,-150.0,0.00016137,2]
[395244859,1764565847622,-158.68270837,0.00016146,2]
[395244861,1764565847632,-218.77357495,0.00016146,2]
[395244863,1764565847641,-500.0,0.00016148,2]
[395244865,1764565847651,-500.0,0.00016148,2]
[395244867,1764565847660,-500.0,0.00016148,2]
[395244869,1764565847670,-500.0,0.00016148,2]
[395244870,1764565847679,-500.0,0.00016148,2]
[395244872,1764565847689,-500.0,0.00016148,2]
[395244874,1764565847699,-500.0,0.00016148,2]
[395244876,1764565847709,-5156.82,0.00016148,2]
[395244878,1764565847719,-5156.82,0.00016148,2]
[395244880,1764565847728,-500.0,0.00016148,2]
[395244881,1764565847737,-500.0,0.00016148,2]
[395244883,1764565847746,-500.0,0.00016148,2]
[395244885,1764565847756,-500.0,0.00016148,2]
[395244887,1764565847765,-500.0,0.00016148,2]
[395244888,1764565847776,-500.0,0.00016148,2]
[395244890,1764565847785,-500.0,0.00016148,2]
[395244892,1764565847795,-500.0,0.00016148,2]
[395244894,1764565847804,-500.0,0.00016148,2]
[395244895,1764565847814,-500.0,0.00016148,2]
[395244897,1764565847823,-500.0,0.00016148,2]
[395244899,1764565847833,-500.0,0.00016148,2]
[395244901,1764565847844,-500.0,0.00016148,2]
[395244903,1764565847854,-331.93282423,0.00016148,2]
[395244904,1764565847864,-500.0,0.00016148,2]
[395244906,1764565847874,-500.0,0.00016148,2]
[395244908,1764565847884,-500.0,0.00016148,2]
[395244910,1764565847895,-500.0,0.00016148,2]
[395244911,1764565847912,-500.0,0.00016148,2]
[395244913,1764565847922,-500.0,0.00016148,2]
[395244915,1764565847932,-500.0,0.00016148,2]
[395244917,1764565847941,-500.0,0.00016148,2]
[395244919,1764565847950,-434.2840336,0.00016148,2]
[395244920,1764565847960,-500.0,0.00016148,2]
[395244922,1764565847969,-500.0,0.00016148,2]
[395244924,1764565847978,-500.0,0.00016148,2]
[395244926,1764565847987,-500.0,0.00016148,2]
[395244927,1764565847997,-500.0,0.00016148,2]
[395244929,1764565848006,-500.0,0.00016148,2]
[395244931,1764565848016,-150.0,0.00016148,2]
[395244933,1764565848025,-300.0,0.00016149,2]
[395244935,1764565848034,-160.0,0.00016149,2]
[395244937,1764565848044,-1500.0,0.00016149,2]
[395244939,1764565848053,-1000.0,0.00016149,2]
[395244940,1764565848063,-3000.0,0.00016149,2]
[395244942,1764565848072,-358.32829599,0.00016149,2]
[395244944,1764565848082,-1000.0,0.00016149,2]
[395244946,1764565848091,-1500.0,0.00016149,2]
[395244948,1764565848101,-194.72792766,0.00016149,2]
[395244949,1764565848112,-1500.0,0.00016149,2]
[395244951,1764565848121,-1000.0,0.00016149,2]
[395244953,1764565848131,-1500.0,0.00016149,2]
[395244955,1764565848140,-1000.0,0.00016149,2]
[395244957,1764565848149,-1500.0,0.00016149,2]
[395244958,1764565848159,-1000.0,0.00016149,2]
[395244960,1764565848168,-1500.0,0.00016149,2]
[395244961,1764565848178,-1000.0,0.00016149,2]
[395244963,1764565848189,-5476.15946739,0.00016149,2]
[395244964,1764565848199,-1500.0,0.00016149,2]
[395244966,1764565848209,-1000.0,0.00016149,2]
[395244968,1764565848218,-1500.0,0.00016149,2]
[395244970,1764565848227,-1000.0,0.00016149,2]
[395244972,1764565848238,-1500.0,0.00016149,2]
[395244973,1764565848247,-1000.0,0.00016149,2]
[395244975,1764565848256,-1500.0,0.00016149,2]
[395244977,1764565848267,-1000.0,0.00016149,2]
[395244978,1764565848276,-559.7798745,0.00016149,2]
[395244980,1764565848286,-1000.0,0.00016149,2]
[395244982,1764565848296,-533.88981491,0.00016149,2]
[395244984,1764565848305,-1000.0,0.00016149,2]
[395244985,1764565848315,-1000.0,0.00016149,2]
[395244987,1764565848325,-620.0,0.00016149,2]
[395244989,1764565848334,-578.20924308,0.00016149,2]
[395244991,1764565848343,-1000.0,0.00016149,2]
[395244992,1764565848356,-1000.0,0.00016149,2]
[395244994,1764565848366,-1000.0,0.00016149,2]
[395244996,1764565848375,-2500.0,0.00016149,2]
[395244998,1764565848384,-1000.0,0.00016149,2]
[395245000,1764565848394,-2500.0,0.00016149,2]
[395245002,1764565848403,-1000.0,0.00016149,2]
[395245003,1764565848412,-2500.0,0.00016149,2]
[395245005,1764565848421,-1000.0,0.00016149,2]
[395245007,1764565848430,-3000.0,0.00016149,2]
[395245009,1764565848440,-2500.0,0.00016149,2]
[395245010,1764565848449,-3000.0,0.00016149,2]
[395245012,1764565848459,-1000.0,0.00016149,2]
[395245014,1764565848468,-250.0,0.00016149,2]
[395245015,1764565848478,-2500.0,0.00016149,2]
[395245017,1764565848487,-1000.0,0.00016149,2]
[395245019,1764565848496,-3000.0,0.00016149,2]
[395245021,1764565848506,-250.0,0.00016149,2]
[395245023,1764565848515,-2500.0,0.00016149,2]
[395245025,1764565848525,-3000.0,0.00016149,2]
[395245026,1764565848534,-1000.0,0.00016149,2]
[395245028,1764565848544,-250.0,0.00016149,2]
[395245030,1764565848553,-2500.0,0.00016149,2]
[395245032,1764565848562,-3000.0,0.00016149,2]
[395245043,1764565848571,-1000.0,0.00016149,2]
[395245045,1764565848697,-250.0,0.00016149,2]
[395245046,1764565848707,-2500.0,0.00016149,2]
[395245048,1764565848716,-3000.0,0.00016149,2]
[395245050,1764565848725,-1000.0,0.00016149,2]
[395245052,1764565848734,-250.0,0.00016149,2]
[395245054,1764565848743,-2500.0,0.00016149,2]
[395245055,1764565848752,-3000.0,0.00016149,2]
[395245057,1764565848761,-1000.0,0.00016149,2]
[395245059,1764565848770,-354.84418245,0.00016149,2]
[395245061,1764565848779,-2500.0,0.00016149,2]
[395245063,1764565848789,-3000.0,0.00016149,2]
[395245064,1764565848798,-1000.0,0.00016149,2]
[395245066,1764565848808,-2500.0,0.00016149,2]
[395245068,1764565848817,-3000.0,0.00016149,2]
[395245069,1764565848826,-2500.0,0.00016149,2]
[395245071,1764565848835,-3000.0,0.00016149,2]
[395245073,1764565848844,-1000.0,0.00016149,2]
[395245075,1764565848854,-2500.0,0.00016149,2]
[395245077,1764565848864,-8000.0,0.00016149,2]
[395245079,1764565848874,-1000.0,0.00016149,2]
[395245081,1764565848884,-8000.0,0.00016149,2]
[395245082,1764565848893,-1000.0,0.00016149,2]
[395245084,1764565848901,-8000.0,0.00016149,2]
[395245086,1764565848910,-1000.0,0.00016149,2]
[395245088,1764565848920,-8000.0,0.00016149,2]
[395245090,1764565848929,-1000.0,0.00016149,2]
[395245091,1764565848938,-8000.0,0.00016149,2]
[395245093,1764565848947,-257.91778498,0.00016149,2]
[395245095,1764565848957,-1000.0,0.00016149,2]
[395245096,1764565848966,-8000.0,0.00016149,2]
[395245098,1764565848976,-194.72792766,0.00016149,2]
[395245100,1764565848985,-762.94247186,0.00016149,2]
[395245101,1764565848994,-8000.0,0.00016149,2]
[395245103,1764565849003,-3000.0,0.00016149,2]
[395245105,1764565849012,-8000.0,0.00016149,2]
[395245107,1764565849021,-3000.0,0.00016149,2]
[395245108,1764565849031,-8000.0,0.00016149,2]
[395245110,1764565849041,-3000.0,0.00016149,2]
[395245112,1764565849051,-8000.0,0.00016149,2]
[395245114,1764565849060,-4911.59586191,0.00016149,2]
[395245115,1764565849068,-500.0,0.00016149,2]
[395245117,1764565849079,-500.0,0.00016149,2]
[395245119,1764565849089,-500.0,0.00016149,2]
[395245121,1764565849098,-500.0,0.00016149,2]
[395245123,1764565849107,-500.0,0.00016149,2]
[395245124,1764565849120,-500.0,0.00016149,2]
[395245126,1764565849130,-500.0,0.00016149,2]
[395245128,1764565849139,-151.0,0.00016149,2]
[395245130,1764565849149,-500.0,0.00016149,2]
[395245131,1764565849158,-1328.07662834,0.00016149,2]
[395245133,1764565849167,-500.0,0.00016149,2]
[395245135,1764565849177,-500.0,0.00016149,2]
[395245137,1764565849192,-500.0,0.00016149,2]
[395245139,1764565849202,-500.0,0.00016149,2]
[395245140,1764565849211,-500.0,0.00016149,2]
[395245142,1764565849220,-500.0,0.00016149,2]
[395245144,1764565849231,-500.0,0.00016149,2]
[395245146,1764565849240,-1000.0,0.00016149,2]
[395245148,1764565849249,-500.0,0.00016149,2]
[395245149,1764565849259,-1000.0,0.00016149,2]
[395245151,1764565849268,-500.0,0.00016149,2]
[395245153,1764565849277,-1000.0,0.00016149,2]
[395245155,1764565849286,-500.0,0.00016149,2]
[395245156,1764565849295,-1000.0,0.00016149,2]
[395245158,1764565849304,-1000.0,0.00016149,2]
[395245160,1764565849313,-1000.0,0.00016149,2]
[395245162,1764565849322,-151.0,0.00016149,2]
[395245164,1764565849331,-1000.0,0.00016149,2]
[395245165,1764565849340,-1000.0,0.00016149,2]
[395245167,1764565849349,-1000.0,0.00016149,2]
[395245169,1764565849358,-1000.0,0.00016149,2]
[395245171,1764565849370,-530.83383746,0.00016149,2]
[395245173,1764565849380,-151.0,0.00016149,2]
[395245174,1764565849389,-226.43577512,0.0001615,2]
[395245176,1764565849398,-373.97112144,0.0001615,2]
[395245178,1764565849407,-2092.314224,0.0001615,2]
[395245180,1764565849417,-383.79559207,0.0001615,2]
[395245182,1764565849426,-150.0,0.0001615,2]
[395245183,1764565849435,-150.0,0.00016152,2]
[395245185,1764565849444,-158.68270837,0.00016163,2]
[395245187,1764565849453,-218.77357495,0.00016163,2]
[395245189,1764565849462,-782.67,0.00016164,11]
[395245191,1764565849472,-150.0,0.00016164,2]
[395245193,1764565849481,-151.0,0.00016165,2]
[395245194,1764565849490,-150.0,0.00016166,2]
[395245196,1764565849499,-150.0,0.00016171,2]
[395245198,1764565849508,-150.0,0.00016176,2]
[395245200,1764565849517,-158.68270837,0.0001618,2]
[395245202,1764565849526,-218.77357495,0.0001618,2]
[395245204,1764565849535,-150.0,0.00016183,2]
[395245205,1764565849544,-250.0,0.00016185,2]
[395245207,1764565849553,-150.0,0.0001619,2]
[395245209,1764565849562,-1379.0,0.00016193,2]
[395245211,1764565849571,-203.73471508,0.00016193,2]
[395245213,1764565849581,-500.0,0.00016193,2]
[395245215,1764565849590,-3218.0,0.00016193,2]
[395245216,1764565849599,-836.0,0.00016193,2]
[395245218,1764565849608,-150.0,0.00016194,2]
[395245220,1764565849619,-150.0,0.00016194,2]
[395245222,1764565849629,-150.0,0.00016196,2]
[395245224,1764565849639,-158.68270837,0.00016197,2]
[395245226,1764565849647,-218.77357495,0.00016197,2]
[395245227,1764565849657,-150.0,0.00016202,2]
[395245229,1764565849666,-158.68270837,0.00016214,2]
[395245231,1764565849675,-150.0,0.00016214,2]
[395245233,1764565849685,-218.77357495,0.00016214,2]
[395245235,1764565849694,-150.0,0.00016214,2]
[395245237,1764565849703,-150.0,0.00016216,2]
[395245239,1764565849713,-150.0,0.00016219,2]
[395245240,1764565849722,-150.0,0.00016225,2]
[395245242,1764565849731,-150.0,0.00016228,2]
[395245244,1764565849740,-158.68270837,0.00016231,2]
[395245246,1764565849750,-218.77357495,0.00016231,2]
[395245248,1764565849760,-150.0,0.00016239,2]
[395245250,1764565849769,-150.0,0.00016243,2]
[395245252,1764565849779,-150.0,0.00016245,2]
[395245253,1764565849788,-158.68270837,0.00016249,2]
[395245255,1764565849798,-218.77357495,0.00016249,2]
[395245257,1764565849807,-150.0,0.00016254,2]
[395245259,1764565849816,-150.0,0.00016255,2]
[395245261,1764565849828,-150.0,0.00016258,2]
[395245263,1764565849844,-150.0,0.00016262,2]
[395245265,1764565849853,-158.68270837,0.00016266,2]
[395245266,1764565849863,-218.77357495,0.00016266,2]
[395245268,1764565849873,-150.0,0.00016274,2]
[395245270,1764565849882,-150.0,0.00016276,2]
[395245272,1764565849891,-150.0,0.00016281,2]
[395245274,1764565849901,-158.68270837,0.00016283,2]
[395245276,1764565849911,-218.77357495,0.00016283,2]
[395245277,1764565849920,-150.0,0.00016283,2]
[395245279,1764565849929,-150.0,0.00016284,2]
[395245281,1764565849938,-150.0,0.00016291,2]
[395245283,1764565849947,-150.0,0.00016296,2]
[395245285,1764565849955,-158.68270837,0.000163,2]
[395245287,1764565849964,-218.77357495,0.000163,2]
[395245288,1764565849973,-1000.0,0.00016301,2]
[395245290,1764565849982,-150.0,0.00016307,2]
[395245292,1764565849991,-150.0,0.00016307,2]
[395245294,1764565849999,-150.0,0.00016307,2]
[395245296,1764565850008,-150.0,0.00016307,2]
[395245298,1764565850017,-150.0,0.00016307,2]
[395245300,1764565850026,-150.0,0.00016313,2]
[395245302,1764565850034,-158.68270837,0.00016317,2]
[395245303,1764565850043,-218.77357495,0.00016317,2]
[395245305,1764565850052,-150.0,0.00016329,2]
[395245307,1764565850061,-150.0,0.00016329,2]
[395245309,1764565850070,-1379.0,0.0001633,2]
[395245311,1764565850079,-500.0,0.0001633,2]
[395245313,1764565850088,-3218.0,0.0001633,2]
[395245315,1764565850097,-836.0,0.0001633,2]
[395245316,1764565850106,-150.0,0.00016333,2]
[395245318,1764565850116,-158.68270837,0.00016334,2]
[395245320,1764565850125,-218.77357495,0.00016334,2]
[395245322,1764565850134,-150.0,0.00016338,2]
[395245324,1764565850143,-150.0,0.00016342,2]
[395245326,1764565850152,-150.0,0.00016349,2]
[395245328,1764565850161,-158.68270837,0.00016351,2]
[395245330,1764565850169,-218.77357495,0.00016351,2]
[395245331,1764565850178,-150.0,0.00016352,2]
[395245333,1764565850189,-150.0,0.00016359,2]
[395245335,1764565850199,-158.68270837,0.00016369,2]
[395245337,1764565850208,-150.0,0.00016369,2]
[395245339,1764565850217,-218.77357495,0.00016369,2]
[395245341,1764565850226,-150.0,0.00016369,2]
[395245342,1764565850235,-150.0,0.00016371,2]
[395245343,1764565850245,-150.0,0.00016375,2]
[395245344,1764565850254,-150.0,0.00016384,2]
[395245345,1764565850263,-150.0,0.00016385,2]
[395245346,1764565850273,-158.68270837,0.00016386,2]
[395245347,1764565850282,-218.77357495,0.00016386,2]
[395245348,1764565850291,-150.0,0.00016397,2]
[395245349,1764565850299,-150.0,0.000164,2]
[395245350,1764565850308,-1000.0,0.000164,2]
[395245351,1764565850317,-150.0,0.00016401,2]
[395245352,1764565850326,-150.0,0.00016402,2]
[395245353,1764565850335,-158.68270837,0.00016403,2]
[395245354,1764565850344,-218.77357495,0.00016403,2]
[395245355,1764565850352,-1644.63910733,0.00016404,2]
[395245356,1764565850363,-150.0,0.00016411,2]
[395245357,1764565850373,-168.0,0.00016412,2]
[395245358,1764565850382,-465.96204167,0.00016419,2]
[395245359,1764565850390,-158.68270837,0.0001642,2]
[395245360,1764565850400,-150.0,0.0001642,2]
[395245361,1764565850409,-218.77357495,0.0001642,2]
[395245362,1764565850418,-150.0,0.0001642,2]
[395245363,1764565850427,-150.0,0.0001642,2]
[395245364,1764565850436,-168.0,0.00016421,2]
[395245365,1764565850445,-168.0,0.00016426,2]
[395245366,1764565850454,-150.0,0.0001643,2]
[395245367,1764565850463,-150.0,0.0001643,2]
[395245368,1764565850472,-158.68270837,0.00016437,2]
[395245369,1764565850481,-218.77357495,0.00016437,2]
[395245370,1764565850491,-150.0,0.00016438,2]
[395245371,1764565850499,-782.67,0.00016438,12]
[395245372,1764565850509,-383.87106597,0.00016438,2]
[395245373,1764565850518,-500.0,0.00016438,2]
[395245374,1764565850527,-5454.01,0.00016438,2]
[395245376,1764565850536,-150.0,0.00016438,2]
[395245377,1764565850545,-13051.53,0.00016438,2]
[395245378,1764565850553,-800.0,0.00016438,2]
[395245380,1764565850562,-600.0,0.00016438,2]
[395245381,1764565850571,-400.0,0.00016438,5]
[395245383,1764565850580,-163.94,0.0001644,2]
[395245385,1764565850588,-150.0,0.00016443,2]
[395245387,1764565850597,-604.07312412,0.00016445,2]
[395245388,1764565850606,-150.0,0.00016446,2]
[395245391,1764565850623,-158.68270837,0.00016454,2]
[395245394,1764565850635,-218.77357495,0.00016454,2]
[395245396,1764565850644,-150.0,0.00016455,2]
[395245398,1764565850653,-150.0,0.00016459,2]
[395245400,1764565850662,-150.0,0.00016461,2]
[395245402,1764565850672,-150.0,0.00016464,2]
[395245404,1764565850682,-150.0,0.00016465,2]
[395245406,1764565850691,-1379.0,0.00016467,2]
[395245408,1764565850700,-500.0,0.00016467,2]
[395245410,1764565850710,-3218.0,0.00016467,2]
[395245412,1764565850719,-836.0,0.00016467,2]
[395245414,1764565850728,-158.68270837,0.00016472,2]
[395245416,1764565850737,-218.77357495,0.00016472,2]
[395245418,1764565850747,-798.51664652,0.00016475,2]
[395245420,1764565850755,-150.0,0.00016477,2]
[395245422,1764565850765,-1193.0,0.00016484,2]
[395245424,1764565850774,-168.0,0.00016488,2]
[395245425,1764565850784,-150.0,0.00016488,2]
[395245426,1764565850793,-150.0,0.00016488,2]
[395245427,1764565850802,-158.68270837,0.00016489,2]
[395245428,1764565850811,-218.77357495,0.00016489,2]
[395245429,1764565850820,-150.0,0.0001649,2]
[395245430,1764565850829,-150.0,0.00016492,2]
[395245431,1764565850842,-150.0,0.00016493,2]
[395245432,1764565850855,-1577.0,0.000165,2]
[395245433,1764565850864,-150.0,0.00016501,2]
[395245434,1764565850873,-158.68270837,0.00016506,2]
[395245435,1764565850882,-218.77357495,0.00016506,2]
[395245436,1764565850892,-31647.64756146,0.00016508,2]
[395245437,1764565850901,-12770.60989328,0.00016508,2]
[395245438,1764565850910,-150.0,0.00016509,2]
[395245439,1764565850919,-150.0,0.00016511,2]
[395245440,1764565850928,-150.0,0.00016516,2]
[395245441,1764565850937,-150.0,0.00016518,2]
[395245442,1764565850946,-158.68270837,0.00016523,2]
[395245443,1764565850955,-150.0,0.00016523,2]
[395245444,1764565850964,-218.77357495,0.00016523,2]
[395245445,1764565850972,-150.0,0.00016523,2]
[395245446,1764565850981,-150.0,0.00016533,2]
[395245447,1764565850991,-150.0,0.00016533,2]
[395245448,1764565851000,-158.68270837,0.0001654,2]
[395245449,1764565851009,-218.77357495,0.0001654,2]
[395245450,1764565851018,-150.0,0.00016542,2]
[395245451,1764565851027,-150.0,0.00016547,2]
[395245452,1764565851036,-150.0,0.00016548,2]
[395245453,1764565851045,-150.0,0.00016554,2]
[395245454,1764565851054,-150.0,0.00016556,2]
[395245455,1764565851064,-158.68270837,0.00016557,2]
[395245456,1764565851072,-218.77357495,0.00016557,2]
[395245457,1764565851082,-150.0,0.00016562,2]
[395245458,1764565851091,-150.0,0.00016562,2]
[395245459,1764565851100,-150.0,0.00016562,2]
[395245461,1764565851109,-1500.0,0.00016564,2]
[395245463,1764565851119,-2500.0,0.00016564,2]
[395245465,1764565851128,-150.0,0.00016568,2]
[395245467,1764565851137,-158.68270837,0.00016575,2]
[395245469,1764565851147,-218.77357495,0.00016575,2]
[395245471,1764565851156,-500.0,0.00016575,2]
[395245473,1764565851166,-150.0,0.00016576,2]
[395245475,1764565851175,-150.0,0.00016579,2]
[395245477,1764565851186,-150.0,0.00016585,2]
[395245479,1764565851199,-158.68270837,0.00016592,2]
[395245481,1764565851208,-218.77357495,0.00016592,2]
[395245484,1764565851218,-150.0,0.00016594,2]
[395245486,1764565851227,-150.0,0.000166,2]
[395245488,1764565851238,-151.0,0.00016601,2]
[395245490,1764565851247,-150.0,0.00016601,2]
[395245492,1764565851256,-150.0,0.00016603,2]
[395245494,1764565851266,-1379.0,0.00016604,2]
[395245495,1764565851276,-3218.0,0.00016604,2]
[395245497,1764565851285,-836.0,0.00016604,2]
[395245499,1764565851294,-150.0,0.00016606,2]
[395245501,1764565851303,-158.68270837,0.00016609,2]
[395245503,1764565851312,-218.77357495,0.00016609,2]
[395245505,1764565851321,-150.0,0.00016615,2]
[395245507,1764565851330,-150.0,0.00016616,2]
[395245509,1764565851339,-150.0,0.0001662,2]
[395245511,1764565851349,-150.0,0.00016624,2]
[395245514,1764565851359,-158.68270837,0.00016626,2]
[395245515,1764565851368,-218.77357495,0.00016626,2]
[395245518,1764565851378,-175.6,0.00016629,2]
[395245520,1764565851387,-150.0,0.00016635,2]
[395245521,1764565851396,-158.68270837,0.00016643,2]
[395245524,1764565851406,-218.77357495,0.00016643,2]
[395245526,1764565851415,-150.0,0.00016647,2]
[395245527,1764565851424,-150.0,0.00016647,2]
[395245529,1764565851433,-150.0,0.00016647,2]
[395245532,1764565851443,-150.0,0.00016647,2]
[395245533,1764565851452,-150.0,0.00016647,2]
[395245535,1764565851461,-150.0,0.00016658,2]
[395245537,1764565851470,-5491.65035635,0.0001666,2]
[395245540,1764565851479,-158.68270837,0.0001666,2]
[395245542,1764565851489,-218.77357495,0.0001666,2]
[395245544,1764565851498,-150.0,0.00016664,2]
[395245546,1764565851507,-150.0,0.00016668,2]
[395245548,1764565851517,-150.0,0.00016669,2]
[395245550,1764565851527,-150.0,0.00016673,2]
[395245551,1764565851536,-158.68270837,0.00016677,2]
[395245553,1764565851545,-150.0,0.00016677,2]
[395245556,1764565851555,-218.77357495,0.00016677,2]
[395245557,1764565851564,-150.0,0.00016677,2]
[395245560,1764565851573,-541.75099719,0.00016679,2]
[395245562,1764565851582,-200.0,0.00016679,2]
[395245564,1764565851592,-150.0,0.00016692,2]
[395245566,1764565851600,-150.0,0.00016693,2]
[395245568,1764565851609,-158.68270837,0.00016695,2]
[395245569,1764565851618,-218.77357495,0.00016695,2]
[395245572,1764565851628,-3000.0,0.00016697,2]
[395245573,1764565851637,-201.93286099,0.00016697,2]
[395245576,1764565851646,-553.64373807,0.00016697,2]
[395245577,1764565851655,-642.94,0.00016697,2]
[395245580,1764565851664,-201.93286099,0.00016697,2]
[395245582,1764565851674,-151.0,0.00016697,2]
[395245584,1764565851683,-151.0,0.00016697,2]
[395245585,1764565851693,-150.0,0.00016699,2]
[395245588,1764565851702,-9009.95799249,0.000167,2]
[395245590,1764565851714,-150.0,0.00016708,2]
[395245592,1764565851722,-158.68270837,0.00016712,2]
[395245594,1764565851731,-218.77357495,0.00016712,2]
[395245595,1764565851740,-163.1222244,0.00016712,2]
[395245598,1764565851750,-782.67,0.00016712,13]
[395245600,1764565851759,-150.0,0.00016712,2]
[395245602,1764565851769,-151.0,0.00016713,2]
[395245604,1764565851779,-150.0,0.00016715,2]
[395245606,1764565851788,-150.0,0.00016721,2]
[395245608,1764565851797,-150.0,0.00016723,2]
[395245609,1764565851807,-150.0,0.00016725,2]
[395245612,1764565851817,-158.68270837,0.00016729,2]
[395245614,1764565851826,-218.77357495,0.00016729,2]
[395245616,1764565851836,-150.0,0.00016737,2]
[395245618,1764565851846,-150.0,0.00016739,2]
[395245620,1764565851855,-1379.0,0.00016741,2]
[395245622,1764565851866,-3218.0,0.00016741,2]